[Event "Early-Titled-Tuesday-Blitz-April-16-2024"]
[Site "Chess.com"]
[Date "2024.04.16"]
[Round "2"]
[White "DenLaz"]
[Black "GP9isback23"]
[Result "1/2-1/2"]
[WhiteElo "3113"]
[BlackElo "2657"]
[TimeControl "180+1"]
[EndTime "8:18:25 PDT"]
[Termination "Game drawn - insufficient material"]

1. d4 {[%clk 0:03:00.9]} 1... Nf6 {[%clk 0:02:57.6]} 2. c4 {[%clk 0:03:01.4]}
2... e6 {[%clk 0:02:57.4]} 3. Nf3 {[%clk 0:02:57.3]} 3... b6 {[%clk 0:02:57.1]}
4. g3 {[%clk 0:02:57.5]} 4... Bb7 {[%clk 0:02:57.5]} 5. Bg2 {[%clk 0:02:57.7]}
5... Be7 {[%clk 0:02:58.2]} 6. O-O {[%clk 0:02:58]} 6... O-O {[%clk 0:02:58.9]}
7. Nc3 {[%clk 0:02:56.3]} 7... Ne4 {[%clk 0:02:58.4]} 8. Bd2 {[%clk 0:02:56.3]}
8... f5 {[%clk 0:02:57.1]} 9. Ne5 {[%clk 0:02:51.2]} 9... d6 {[%clk 0:02:38.6]}
10. Nd3 {[%clk 0:02:50.2]} 10... Bf6 {[%clk 0:02:07.8]} 11. Nf4 {[%clk
0:02:46.6]} 11... Qe7 {[%clk 0:02:02.4]} 12. Nxe4 {[%clk 0:02:32.1]} 12... fxe4
{[%clk 0:01:53.1]} 13. d5 {[%clk 0:02:22.6]} 13... exd5 {[%clk 0:01:53]} 14.
cxd5 {[%clk 0:02:22.9]} 14... a5 {[%clk 0:01:04.3]} 15. Rc1 {[%clk 0:02:14.3]}
15... Na6 {[%clk 0:01:03.8]} 16. b3 {[%clk 0:02:01.4]} 16... Nc5 {[%clk
0:01:02.6]} 17. Be3 {[%clk 0:02:01.6]} 17... Bg5 {[%clk 0:01:00.8]} 18. a3
{[%clk 0:01:38.1]} 18... Bxf4 {[%clk 0:00:48.5]} 19. Bxf4 {[%clk 0:01:37.3]}
19... a4 {[%clk 0:00:37.1]} 20. b4 {[%clk 0:01:35.3]} 20... Nb3 {[%clk
0:00:37.2]} 21. Rc3 {[%clk 0:01:35.3]} 21... Rf5 {[%clk 0:00:33.7]} 22. Be3
{[%clk 0:01:03]} 22... Rxd5 {[%clk 0:00:24.6]} 23. Qc2 {[%clk 0:01:02.1]} 23...
c5 {[%clk 0:00:20.5]} 24. Bxe4 {[%clk 0:00:54.3]} 24... Re5 {[%clk 0:00:20.9]}
25. Bxb7 {[%clk 0:00:47.2]} 25... Qxb7 {[%clk 0:00:20.5]} 26. bxc5 {[%clk
0:00:47.7]} 26... bxc5 {[%clk 0:00:20.9]} 27. Rd1 {[%clk 0:00:48.2]} 27... Qc6
{[%clk 0:00:18.3]} 28. Bf4 {[%clk 0:00:45.6]} 28... Re6 {[%clk 0:00:18.7]} 29.
Re3 {[%clk 0:00:22.8]} 29... Rae8 {[%clk 0:00:18.6]} 30. Rxe6 {[%clk 0:00:22.9]}
30... Rxe6 {[%clk 0:00:19.5]} 31. e3 {[%clk 0:00:19]} 31... d5 {[%clk
0:00:18.2]} 32. h4 {[%clk 0:00:18.4]} 32... h6 {[%clk 0:00:14.2]} 33. Qd3 {[%clk
0:00:15.6]} 33... d4 {[%clk 0:00:14.1]} 34. Qc4 {[%clk 0:00:14.8]} 34... Kh7
{[%clk 0:00:13.7]} 35. Qd3+ {[%clk 0:00:12]} 35... Qe4 {[%clk 0:00:13.2]} 36.
Qxe4+ {[%clk 0:00:09.1]} 36... Rxe4 {[%clk 0:00:14.1]} 37. exd4 {[%clk
0:00:09.7]} 37... Rxd4 {[%clk 0:00:13.9]} 38. Rxd4 {[%clk 0:00:07.8]} 38... cxd4
{[%clk 0:00:14.3]} 39. Kf1 {[%clk 0:00:08]} 39... Kg6 {[%clk 0:00:15]} 40. Ke2
{[%clk 0:00:08.6]} 40... Kf5 {[%clk 0:00:15.7]} 41. Kd3 {[%clk 0:00:09.2]} 41...
g5 {[%clk 0:00:15.8]} 42. hxg5 {[%clk 0:00:08.9]} 42... hxg5 {[%clk 0:00:16.7]}
43. Bd6 {[%clk 0:00:09.3]} 43... Ke6 {[%clk 0:00:10.8]} 44. Bb4 {[%clk
0:00:06.7]} 44... Kd5 {[%clk 0:00:10.5]} 45. f4 {[%clk 0:00:07.4]} 45... gxf4
{[%clk 0:00:10.6]} 46. gxf4 {[%clk 0:00:08.3]} 46... Nc1+ {[%clk 0:00:10.4]} 47.
Kc2 {[%clk 0:00:08.6]} 47... Ne2 {[%clk 0:00:10.2]} 48. f5 {[%clk 0:00:08.4]}
48... Ke5 {[%clk 0:00:09.9]} 49. Kd3 {[%clk 0:00:08.3]} 49... Nf4+ {[%clk
0:00:09.7]} 50. Kc4 {[%clk 0:00:08.9]} 50... d3 {[%clk 0:00:05.1]} 51. Bd2
{[%clk 0:00:08.7]} 51... Kxf5 {[%clk 0:00:02.2]} 52. Kd4 {[%clk 0:00:08.6]}
52... Ne6+ {[%clk 0:00:01.9]} 53. Kxd3 {[%clk 0:00:09]} 53... Ke5 {[%clk
0:00:02.2]} 54. Kc4 {[%clk 0:00:09.5]} 54... Kd6 {[%clk 0:00:02.7]} 55. Kb5
{[%clk 0:00:10.2]} 55... Kc7 {[%clk 0:00:02.4]} 56. Kxa4 {[%clk 0:00:10.9]}
56... Kb7 {[%clk 0:00:03.3]} 57. Kb5 {[%clk 0:00:11.8]} 57... Nd4+ {[%clk
0:00:03.6]} 58. Kc4 {[%clk 0:00:11.8]} 58... Nc6 {[%clk 0:00:04]} 59. Kc5 {[%clk
0:00:12.3]} 59... Ne5 {[%clk 0:00:03.4]} 60. Bc3 {[%clk 0:00:12.8]} 60... Nd7+
{[%clk 0:00:03.1]} 61. Kb5 {[%clk 0:00:13.5]} 61... Nb6 {[%clk 0:00:02.5]} 62.
Bd4 {[%clk 0:00:14.3]} 62... Nd5 {[%clk 0:00:02.7]} 63. a4 {[%clk 0:00:14.9]}
63... Nc7+ {[%clk 0:00:03.1]} 64. Kb4 {[%clk 0:00:15.4]} 64... Na6+ {[%clk
0:00:03.9]} 65. Kb5 {[%clk 0:00:16]} 65... Nc7+ {[%clk 0:00:04.3]} 66. Kb4
{[%clk 0:00:16.7]} 66... Ka6 {[%clk 0:00:04.8]} 67. a5 {[%clk 0:00:16.9]} 67...
Nd5+ {[%clk 0:00:05.2]} 68. Ka4 {[%clk 0:00:17.6]} 68... Ne7 {[%clk 0:00:05.3]}
69. Kb3 {[%clk 0:00:18.1]} 69... Nc6 {[%clk 0:00:05.8]} 70. Bc3 {[%clk 0:00:19]}
70... Nxa5+ {[%clk 0:00:06.3]} 1/2-1/2

[Event "Early-Titled-Tuesday-Blitz-April-16-2024"]
[Site "Chess.com"]
[Date "2024.04.16"]
[Round "2"]
[White "Hercog"]
[Black "Sanan_Sjugirov"]
[Result "0-1"]
[WhiteElo "2093"]
[BlackElo "3054"]
[TimeControl "180+1"]
[EndTime "8:18:25 PDT"]
[Termination "Sanan_Sjugirov won on time"]

1. d4 {[%clk 0:02:37.9]} 1... Nf6 {[%clk 0:02:50]} 2. c4 {[%clk 0:02:37.7]} 2...
e6 {[%clk 0:02:50.4]} 3. Nc3 {[%clk 0:02:37.5]} 3... Bb4 {[%clk 0:02:50.5]} 4.
e3 {[%clk 0:02:37.4]} 4... O-O {[%clk 0:02:50.6]} 5. Ne2 {[%clk 0:02:37.5]} 5...
d5 {[%clk 0:02:50.8]} 6. a3 {[%clk 0:02:37.3]} 6... Be7 {[%clk 0:02:51.5]} 7.
cxd5 {[%clk 0:02:37.2]} 7... exd5 {[%clk 0:02:52.2]} 8. Nf4 {[%clk 0:02:37.3]}
8... c6 {[%clk 0:02:52.8]} 9. Bd3 {[%clk 0:02:37.3]} 9... Re8 {[%clk 0:02:53.3]}
10. O-O {[%clk 0:02:37.3]} 10... Nbd7 {[%clk 0:02:54]} 11. f3 {[%clk 0:02:37.4]}
11... Nf8 {[%clk 0:02:54.3]} 12. Qe1 {[%clk 0:02:37.3]} 12... Ng6 {[%clk
0:02:45.8]} 13. Nfe2 {[%clk 0:02:35.9]} 13... c5 {[%clk 0:02:44]} 14. dxc5
{[%clk 0:02:35.7]} 14... Bxc5 {[%clk 0:02:43.9]} 15. Qf2 {[%clk 0:02:36]} 15...
Bd7 {[%clk 0:02:41.4]} 16. b4 {[%clk 0:02:35.8]} 16... Bb6 {[%clk 0:02:40.1]}
17. Nd4 {[%clk 0:02:33.7]} 17... Rc8 {[%clk 0:02:35.6]} 18. Bd2 {[%clk
0:02:33.5]} 18... Ne5 {[%clk 0:02:34.7]} 19. Be2 {[%clk 0:02:28]} 19... Nc4
{[%clk 0:02:27.4]} 20. Bxc4 {[%clk 0:02:25]} 20... Rxc4 {[%clk 0:02:28.3]} 21.
Rac1 {[%clk 0:02:24.3]} 21... Qc7 {[%clk 0:02:18.2]} 22. Rfd1 {[%clk 0:02:06.7]}
22... Qe5 {[%clk 0:02:08.7]} 23. Nce2 {[%clk 0:01:58.3]} 23... h6 {[%clk
0:02:06.2]} 24. Rc3 {[%clk 0:01:51.7]} 24... Rec8 {[%clk 0:02:01.2]} 25. Rdc1
{[%clk 0:01:51.5]} 25... Ne8 {[%clk 0:01:51.4]} 26. Nf4 {[%clk 0:01:44.9]} 26...
Nd6 {[%clk 0:01:50.1]} 27. Nd3 {[%clk 0:01:44.3]} 27... Qf6 {[%clk 0:01:47.2]}
28. Rxc4 {[%clk 0:01:26]} 28... Nxc4 {[%clk 0:01:45.4]} 29. Nf4 {[%clk
0:01:20.5]} 29... Qe5 {[%clk 0:01:40]} 30. Nd3 {[%clk 0:01:18.6]} 30... Qd6
{[%clk 0:01:38.7]} 31. Rc3 {[%clk 0:01:07.2]} 31... Re8 {[%clk 0:01:37.6]} 32.
Bc1 {[%clk 0:01:04.3]} 32... Qf6 {[%clk 0:01:36.6]} 33. Nc5 {[%clk 0:00:48.7]}
33... Bc8 {[%clk 0:01:34.5]} 34. h3 {[%clk 0:00:42.9]} 34... Bc7 {[%clk
0:01:31.4]} 35. e4 {[%clk 0:00:36.8]} 35... Be5 {[%clk 0:01:30]} 36. Rd3 {[%clk
0:00:36.7]} 36... b6 {[%clk 0:01:29]} 37. Ncb3 {[%clk 0:00:33.8]} 37... dxe4
{[%clk 0:01:24.7]} 38. fxe4 {[%clk 0:00:34]} 38... Bb7 {[%clk 0:01:22.2]} 39.
Qxf6 {[%clk 0:00:33.6]} 39... Bxf6 {[%clk 0:01:23.1]} 40. Rc3 {[%clk 0:00:28.9]}
40... Nd6 {[%clk 0:01:12.2]} 41. Rc7 {[%clk 0:00:28.8]} 41... Be5 {[%clk
0:01:02.1]} 42. Nf3 {[%clk 0:00:26]} 42... Bg3 {[%clk 0:00:57.1]} 43. Nbd4
{[%clk 0:00:20.5]} 43... Bxe4 {[%clk 0:00:41.7]} 44. Rxa7 {[%clk 0:00:19.3]}
44... Bb7 {[%clk 0:00:39.5]} 45. Bd2 {[%clk 0:00:16.1]} 45... g6 {[%clk
0:00:32.9]} 46. a4 {[%clk 0:00:15.9]} 46... Bxf3 {[%clk 0:00:23.3]} 47. Nxf3
{[%clk 0:00:15.7]} 47... Nc4 {[%clk 0:00:24]} 48. Bc3 {[%clk 0:00:15.4]} 48...
g5 {[%clk 0:00:20.1]} 49. a5 {[%clk 0:00:15.2]} 49... bxa5 {[%clk 0:00:19.3]}
50. bxa5 {[%clk 0:00:15.3]} 50... Rb8 {[%clk 0:00:16.4]} 51. Kf1 {[%clk
0:00:11.6]} 51... Rb3 {[%clk 0:00:15.5]} 52. Bf6 {[%clk 0:00:10.3]} 52... Ra3
{[%clk 0:00:10.1]} 53. a6 {[%clk 0:00:08.3]} 53... Ra2 {[%clk 0:00:10.7]} 54.
Rd7 {[%clk 0:00:03.4]} 54... Ne3+ {[%clk 0:00:10.4]} 0-1

[Event "Early-Titled-Tuesday-Blitz-April-16-2024"]
[Site "Chess.com"]
[Date "2024.04.16"]
[Round "2"]
[White "RebelJohnny"]
[Black "BashirliSaadat"]
[Result "1/2-1/2"]
[WhiteElo "2618"]
[BlackElo "2350"]
[TimeControl "180+1"]
[EndTime "8:18:27 PDT"]
[Termination "Game drawn by repetition"]

1. e4 {[%clk 0:03:00.9]} 1... c5 {[%clk 0:02:59.6]} 2. Nf3 {[%clk 0:03:00.5]}
2... Nc6 {[%clk 0:02:59.9]} 3. d4 {[%clk 0:03:00.5]} 3... cxd4 {[%clk
0:03:00.8]} 4. Nxd4 {[%clk 0:03:01.4]} 4... g6 {[%clk 0:03:01.3]} 5. Nc3 {[%clk
0:03:01.2]} 5... Bg7 {[%clk 0:03:01.9]} 6. Be3 {[%clk 0:03:00.9]} 6... Nf6
{[%clk 0:03:02.5]} 7. Bc4 {[%clk 0:02:59.3]} 7... O-O {[%clk 0:03:03.1]} 8. Bb3
{[%clk 0:02:58.7]} 8... a5 {[%clk 0:03:00.6]} 9. O-O {[%clk 0:02:56.7]} 9... a4
{[%clk 0:02:58.6]} 10. Nxa4 {[%clk 0:02:56.7]} 10... Nxe4 {[%clk 0:02:58.5]} 11.
Nb5 {[%clk 0:02:55]} 11... Rxa4 {[%clk 0:02:51.5]} 12. Bxa4 {[%clk 0:02:54.2]}
12... Qa5 {[%clk 0:02:52.1]} 13. c3 {[%clk 0:02:40.6]} 13... d6 {[%clk
0:02:43.7]} 14. Nd4 {[%clk 0:02:33.8]} 14... Nxd4 {[%clk 0:02:25.4]} 15. Bxd4
{[%clk 0:02:34.7]} 15... e5 {[%clk 0:02:18]} 16. Be3 {[%clk 0:02:33.2]} 16...
Be6 {[%clk 0:02:17]} 17. Bb3 {[%clk 0:02:15.4]} 17... d5 {[%clk 0:01:57.1]} 18.
Qe2 {[%clk 0:01:55.6]} 18... Rd8 {[%clk 0:01:51.9]} 19. Rad1 {[%clk 0:01:51.8]}
19... f5 {[%clk 0:01:50.6]} 20. f3 {[%clk 0:01:48.2]} 20... Nf6 {[%clk
0:01:49.6]} 21. Bg5 {[%clk 0:01:48.1]} 21... Qb6+ {[%clk 0:01:32.8]} 22. Kh1
{[%clk 0:01:46.7]} 22... h6 {[%clk 0:01:30.9]} 23. Bh4 {[%clk 0:01:33.7]} 23...
g5 {[%clk 0:01:25.7]} 24. Bf2 {[%clk 0:01:33.8]} 24... Qc7 {[%clk 0:01:25.3]}
25. Rfe1 {[%clk 0:01:27.1]} 25... Nh5 {[%clk 0:01:18]} 26. Bd4 {[%clk
0:01:15.2]} 26... e4 {[%clk 0:00:34.4]} 27. fxe4 {[%clk 0:00:59.9]} 27... Nf4
{[%clk 0:00:32.3]} 28. Qd2 {[%clk 0:00:53.9]} 28... dxe4 {[%clk 0:00:19.5]} 29.
Qe3 {[%clk 0:00:39.6]} 29... Qf7 {[%clk 0:00:07.4]} 30. Bxg7 {[%clk 0:00:34.8]}
30... Rxd1 {[%clk 0:00:07.1]} 31. Rxd1 {[%clk 0:00:35.7]} 31... Kxg7 {[%clk
0:00:07]} 32. Bxe6 {[%clk 0:00:27.4]} 32... Qxe6 {[%clk 0:00:04.5]} 33. b3
{[%clk 0:00:25.8]} 33... Qc6 {[%clk 0:00:03.7]} 34. g3 {[%clk 0:00:20.6]} 34...
Ne6 {[%clk 0:00:02.3]} 35. c4 {[%clk 0:00:16.2]} 35... f4 {[%clk 0:00:02.9]} 36.
Qc3+ {[%clk 0:00:16]} 36... Kg6 {[%clk 0:00:02.8]} 37. Qe5 {[%clk 0:00:11.5]}
37... e3+ {[%clk 0:00:03.4]} 38. Kg1 {[%clk 0:00:11.5]} 38... f3 {[%clk
0:00:03.8]} 39. Qxe3 {[%clk 0:00:11.3]} 39... g4 {[%clk 0:00:04.3]} 40. Qd3+
{[%clk 0:00:07.3]} 40... Kf6 {[%clk 0:00:04.3]} 41. Qe3 {[%clk 0:00:04.7]} 41...
Ng5 {[%clk 0:00:04.3]} 42. Qf4+ {[%clk 0:00:04.4]} 42... Kg7 {[%clk 0:00:04.1]}
43. Qe5+ {[%clk 0:00:04.8]} 43... Kf7 {[%clk 0:00:03.5]} 44. Qd5+ {[%clk
0:00:05.1]} 44... Qxd5 {[%clk 0:00:03.2]} 45. Rxd5 {[%clk 0:00:06]} 45... Nh3+
{[%clk 0:00:03.1]} 46. Kf1 {[%clk 0:00:06.4]} 46... Ng5 {[%clk 0:00:03.7]} 47.
Rxg5 {[%clk 0:00:06.1]} 47... hxg5 {[%clk 0:00:03.7]} 48. c5 {[%clk 0:00:06.7]}
48... Ke6 {[%clk 0:00:04.3]} 49. b4 {[%clk 0:00:07.1]} 49... Kd5 {[%clk
0:00:05.1]} 50. a3 {[%clk 0:00:07.8]} 50... Kc4 {[%clk 0:00:05.6]} 51. Kf2
{[%clk 0:00:08]} 51... Kb5 {[%clk 0:00:06.1]} 52. Ke3 {[%clk 0:00:06.5]} 52...
Kc6 {[%clk 0:00:06]} 53. a4 {[%clk 0:00:06.4]} 53... b6 {[%clk 0:00:04]} 54.
cxb6 {[%clk 0:00:04.5]} 54... Kxb6 {[%clk 0:00:04.9]} 55. Kf2 {[%clk 0:00:02.6]}
55... Ka6 {[%clk 0:00:05.3]} 56. b5+ {[%clk 0:00:02.9]} 56... Kb6 {[%clk
0:00:05.6]} 57. Ke3 {[%clk 0:00:02.6]} 57... Ka5 {[%clk 0:00:05.9]} 58. Kd2
{[%clk 0:00:02.3]} 58... Kb6 {[%clk 0:00:06.3]} 59. Ke3 {[%clk 0:00:03]} 59...
Ka5 {[%clk 0:00:06.6]} 60. Kf2 {[%clk 0:00:03.7]} 60... Kb6 {[%clk 0:00:07]} 61.
Ke3 {[%clk 0:00:04.2]} 1/2-1/2

[Event "Early-Titled-Tuesday-Blitz-April-16-2024"]
[Site "Chess.com"]
[Date "2024.04.16"]
[Round "2"]
[White "Fjal"]
[Black "Manukyan_Artak"]
[Result "1-0"]
[WhiteElo "2309"]
[BlackElo "2502"]
[TimeControl "180+1"]
[EndTime "8:18:28 PDT"]
[Termination "Fjal won by resignation"]

1. Nf3 {[%clk 0:02:51.4]} 1... g6 {[%clk 0:02:59.4]} 2. g3 {[%clk 0:02:51.9]}
2... Bg7 {[%clk 0:02:59.8]} 3. Bg2 {[%clk 0:02:52.8]} 3... e5 {[%clk 0:03:00]}
4. O-O {[%clk 0:02:53.7]} 4... e4 {[%clk 0:03:00]} 5. Ne1 {[%clk 0:02:54.1]}
5... f5 {[%clk 0:03:00]} 6. c4 {[%clk 0:02:54.7]} 6... c5 {[%clk 0:02:57.3]} 7.
d3 {[%clk 0:02:54.7]} 7... exd3 {[%clk 0:02:53.7]} 8. Nxd3 {[%clk 0:02:44.4]}
8... d6 {[%clk 0:02:51.2]} 9. Nc3 {[%clk 0:02:38.1]} 9... Nc6 {[%clk 0:02:50.9]}
10. Bf4 {[%clk 0:02:38]} 10... Nge7 {[%clk 0:02:40.1]} 11. Nb5 {[%clk
0:02:35.7]} 11... Ne5 {[%clk 0:02:33.6]} 12. Nxd6+ {[%clk 0:02:19.9]} 12... Qxd6
{[%clk 0:02:29.3]} 13. Nxe5 {[%clk 0:02:20.4]} 13... Qa6 {[%clk 0:01:54.8]} 14.
Nd3 {[%clk 0:01:45.4]} 14... Qxc4 {[%clk 0:01:47.6]} 15. Rc1 {[%clk 0:01:40.5]}
15... Qxa2 {[%clk 0:01:44.2]} 16. Nxc5 {[%clk 0:01:35]} 16... O-O {[%clk
0:01:40.9]} 17. Bd6 {[%clk 0:01:35]} 17... Qf7 {[%clk 0:01:34.8]} 18. Nxb7
{[%clk 0:01:24.3]} 18... Bxb7 {[%clk 0:01:29.5]} 19. Bxb7 {[%clk 0:01:25.2]}
19... Rad8 {[%clk 0:01:29]} 20. Rc7 {[%clk 0:01:25.8]} 20... Bf6 {[%clk
0:01:18]} 21. Rxe7 {[%clk 0:00:56.7]} 21... Bxe7 {[%clk 0:01:14.9]} 22. Bd5
{[%clk 0:00:55.3]} 22... Rxd6 {[%clk 0:01:12.3]} 23. Bxf7+ {[%clk 0:00:54.9]}
23... Rxf7 {[%clk 0:01:13.2]} 24. Qa4 {[%clk 0:00:49.4]} 24... Rd2 {[%clk
0:01:13.1]} 25. Rc1 {[%clk 0:00:42.8]} 25... Rxb2 {[%clk 0:01:07]} 26. Rc8+
{[%clk 0:00:42.8]} 26... Bf8 {[%clk 0:01:03.8]} 27. Qc4 {[%clk 0:00:33.2]} 27...
Rb7 {[%clk 0:01:02.7]} 28. h4 {[%clk 0:00:32.5]} 28... h5 {[%clk 0:00:57.9]} 29.
Qe6 {[%clk 0:00:25.8]} 29... Kh7 {[%clk 0:00:54.4]} 30. Kg2 {[%clk 0:00:20.5]}
30... Rbc7 {[%clk 0:00:49.8]} 31. Ra8 {[%clk 0:00:19.9]} 31... Bg7 {[%clk
0:00:44.3]} 32. e3 {[%clk 0:00:19.7]} 32... Rfe7 {[%clk 0:00:39.3]} 33. Qg8+
{[%clk 0:00:19.1]} 33... Kh6 {[%clk 0:00:37.1]} 34. Rd8 {[%clk 0:00:19]} 34...
Red7 {[%clk 0:00:32.8]} 35. Re8 {[%clk 0:00:18.9]} 35... Re7 {[%clk 0:00:32.3]}
36. Rb8 {[%clk 0:00:18.6]} 36... Rb7 {[%clk 0:00:32.2]} 37. Rc8 {[%clk
0:00:19.1]} 37... Rec7 {[%clk 0:00:32.3]} 38. Rd8 {[%clk 0:00:19.3]} 38... Rd7
{[%clk 0:00:32.6]} 39. Rxd7 {[%clk 0:00:20.1]} 39... Rxd7 {[%clk 0:00:32.3]} 40.
Qe8 {[%clk 0:00:20.8]} 40... Rb7 {[%clk 0:00:30.8]} 41. Qa8 {[%clk 0:00:20.1]}
41... Rf7 {[%clk 0:00:30.6]} 42. Kf3 {[%clk 0:00:21]} 42... Bf6 {[%clk
0:00:29.4]} 43. Qd5 {[%clk 0:00:21.6]} 43... Kg7 {[%clk 0:00:29.5]} 44. Qe6
{[%clk 0:00:21.8]} 44... Re7 {[%clk 0:00:29.2]} 45. Qd6 {[%clk 0:00:21.7]} 45...
Rf7 {[%clk 0:00:25]} 46. e4 {[%clk 0:00:20.3]} 46... fxe4+ {[%clk 0:00:24]} 47.
Kxe4 {[%clk 0:00:21.2]} 47... Re7+ {[%clk 0:00:24.4]} 48. Kf3 {[%clk 0:00:21.7]}
48... Rf7 {[%clk 0:00:24.7]} 49. Kg2 {[%clk 0:00:22.4]} 49... Be7 {[%clk
0:00:23.3]} 50. Qd4+ {[%clk 0:00:21.9]} 50... Bf6 {[%clk 0:00:24.2]} 51. Qd5
{[%clk 0:00:22.6]} 51... Re7 {[%clk 0:00:24.4]} 52. f3 {[%clk 0:00:22.7]} 52...
Re5 {[%clk 0:00:23.9]} 53. Qd7+ {[%clk 0:00:22.3]} 53... Re7 {[%clk 0:00:24.3]}
54. Qd6 {[%clk 0:00:22.6]} 54... a5 {[%clk 0:00:19.2]} 55. Qc5 {[%clk 0:00:20]}
55... Re2+ {[%clk 0:00:17.5]} 56. Kh3 {[%clk 0:00:19.9]} 56... Ra2 {[%clk
0:00:16.3]} 57. Qc7+ {[%clk 0:00:20.1]} 57... Kh6 {[%clk 0:00:15.8]} 58. Qf4+
{[%clk 0:00:20.6]} 58... Kg7 {[%clk 0:00:15.3]} 59. Qc4 {[%clk 0:00:20.5]} 59...
Ra1 {[%clk 0:00:14]} 60. Qc7+ {[%clk 0:00:20.7]} 60... Kg8 {[%clk 0:00:14.4]}
61. Qc8+ {[%clk 0:00:20.6]} 61... Kg7 {[%clk 0:00:14.8]} 62. Qd7+ {[%clk
0:00:21.3]} 62... Kg8 {[%clk 0:00:15.1]} 63. Qe8+ {[%clk 0:00:21.8]} 63... Kg7
{[%clk 0:00:15.5]} 64. g4 {[%clk 0:00:22.2]} 64... hxg4+ {[%clk 0:00:15]} 65.
fxg4 {[%clk 0:00:23]} 65... Ra3+ {[%clk 0:00:15.5]} 66. Kg2 {[%clk 0:00:23.2]}
66... Bxh4 {[%clk 0:00:15.6]} 67. Qd7+ {[%clk 0:00:21.9]} 67... Kh6 {[%clk
0:00:14.2]} 68. Qd2+ {[%clk 0:00:21.4]} 68... Bg5 {[%clk 0:00:14.1]} 69. Qb2
{[%clk 0:00:19.7]} 69... Bc1 {[%clk 0:00:04.1]} 70. Qxc1+ {[%clk 0:00:18.3]} 1-0

[Event "Early-Titled-Tuesday-Blitz-April-16-2024"]
[Site "Chess.com"]
[Date "2024.04.16"]
[Round "2"]
[White "Dzidzik2203"]
[Black "M1711"]
[Result "0-1"]
[WhiteElo "2416"]
[BlackElo "2708"]
[TimeControl "180+1"]
[EndTime "8:18:29 PDT"]
[Termination "M1711 won by checkmate"]

1. b3 {[%clk 0:03:00.9]} 1... d5 {[%clk 0:02:59.2]} 2. Nf3 {[%clk 0:02:59]} 2...
Bg4 {[%clk 0:02:58.5]} 3. Ne5 {[%clk 0:02:58.3]} 3... Bf5 {[%clk 0:02:58.1]} 4.
Bb2 {[%clk 0:02:55.6]} 4... f6 {[%clk 0:02:57.5]} 5. Nf3 {[%clk 0:02:51.5]} 5...
e5 {[%clk 0:02:56.6]} 6. d3 {[%clk 0:02:51.3]} 6... Nc6 {[%clk 0:02:54.3]} 7. g3
{[%clk 0:02:47.9]} 7... Bb4+ {[%clk 0:02:43.8]} 8. Nbd2 {[%clk 0:02:44.4]} 8...
e4 {[%clk 0:02:36.6]} 9. Nh4 {[%clk 0:02:39.8]} 9... Be6 {[%clk 0:02:21.1]} 10.
c3 {[%clk 0:02:38.5]} 10... g5 {[%clk 0:01:54.9]} 11. cxb4 {[%clk 0:02:13.1]}
11... gxh4 {[%clk 0:01:55.1]} 12. dxe4 {[%clk 0:02:13.6]} 12... Nxb4 {[%clk
0:01:50.9]} 13. Bg2 {[%clk 0:02:09.5]} 13... h3 {[%clk 0:01:46.9]} 14. Bf3
{[%clk 0:02:08.9]} 14... Qd7 {[%clk 0:01:41.7]} 15. O-O {[%clk 0:02:03.6]} 15...
O-O-O {[%clk 0:01:39.5]} 16. Qc1 {[%clk 0:01:50.1]} 16... Ne7 {[%clk 0:01:24.5]}
17. Bxf6 {[%clk 0:01:35]} 17... Rhf8 {[%clk 0:01:24]} 18. Bxe7 {[%clk
0:01:35.5]} 18... Qxe7 {[%clk 0:01:24.2]} 19. a3 {[%clk 0:01:35.2]} 19... Nc6
{[%clk 0:01:08.3]} 20. Qb2 {[%clk 0:01:22.8]} 20... dxe4 {[%clk 0:01:04.2]} 21.
Nxe4 {[%clk 0:01:20.5]} 21... Bd5 {[%clk 0:00:57.9]} 22. Nd2 {[%clk 0:01:12.5]}
22... Kb8 {[%clk 0:00:28.5]} 23. Rac1 {[%clk 0:01:04.6]} 23... Nd4 {[%clk
0:00:26.7]} 24. Qxd4 {[%clk 0:00:22]} 24... Bxf3 {[%clk 0:00:26.6]} 25. Qe3
{[%clk 0:00:22.7]} 25... Qxe3 {[%clk 0:00:21.4]} 26. fxe3 {[%clk 0:00:23.6]}
26... Bxe2 {[%clk 0:00:16.6]} 27. Rxf8 {[%clk 0:00:22.7]} 27... Rxf8 {[%clk
0:00:17.5]} 28. Re1 {[%clk 0:00:21.7]} 28... Bb5 {[%clk 0:00:12.1]} 29. e4
{[%clk 0:00:21.5]} 29... Kc8 {[%clk 0:00:11.6]} 30. e5 {[%clk 0:00:16.8]} 30...
Kd7 {[%clk 0:00:11.1]} 31. Ne4 {[%clk 0:00:17.5]} 31... Ke7 {[%clk 0:00:04.3]}
32. Ng5 {[%clk 0:00:17.5]} 32... h6 {[%clk 0:00:02.3]} 33. Nxh3 {[%clk
0:00:17.7]} 33... Rf3 {[%clk 0:00:03.1]} 34. Nf4 {[%clk 0:00:16.1]} 34... Rxb3
{[%clk 0:00:02.8]} 35. e6 {[%clk 0:00:16.5]} 35... Bc6 {[%clk 0:00:01.9]} 36.
Ng6+ {[%clk 0:00:13.7]} 36... Kf6 {[%clk 0:00:02.4]} 37. Nf4 {[%clk 0:00:12.7]}
37... Ke7 {[%clk 0:00:02.8]} 38. Ng6+ {[%clk 0:00:12.1]} 38... Kf6 {[%clk
0:00:03.4]} 39. Nh4 {[%clk 0:00:12.3]} 39... Rxa3 {[%clk 0:00:03.5]} 40. Kf2
{[%clk 0:00:10]} 40... Ra2+ {[%clk 0:00:03.4]} 41. Ke3 {[%clk 0:00:10.4]} 41...
Kxe6 {[%clk 0:00:03.7]} 42. Kf4+ {[%clk 0:00:11.1]} 42... Kd7 {[%clk 0:00:02.9]}
43. Nf5 {[%clk 0:00:10.7]} 43... Rxh2 {[%clk 0:00:03.3]} 44. Re7+ {[%clk
0:00:10.3]} 44... Kd8 {[%clk 0:00:04]} 45. Rg7 {[%clk 0:00:10.2]} 45... b6
{[%clk 0:00:04.1]} 46. Ke5 {[%clk 0:00:10]} 46... Re2+ {[%clk 0:00:03.5]} 47.
Kf6 {[%clk 0:00:10.5]} 47... Kc8 {[%clk 0:00:02.6]} 48. Ne7+ {[%clk 0:00:10.1]}
48... Kb7 {[%clk 0:00:03.2]} 49. Nf5 {[%clk 0:00:08.6]} 49... a5 {[%clk
0:00:02.5]} 50. Nxh6 {[%clk 0:00:06]} 50... a4 {[%clk 0:00:03]} 51. Nf5 {[%clk
0:00:03.1]} 51... a3 {[%clk 0:00:03.1]} 52. Nd6+ {[%clk 0:00:04]} 52... Ka6
{[%clk 0:00:02.5]} 53. Rxc7 {[%clk 0:00:04.1]} 53... a2 {[%clk 0:00:02.9]} 54.
Rxc6 {[%clk 0:00:04.2]} 54... a1=Q+ {[%clk 0:00:03.3]} 55. Kf7 {[%clk 0:00:04]}
55... Rf2+ {[%clk 0:00:03.3]} 56. Ke7 {[%clk 0:00:04.4]} 56... Qf6+ {[%clk
0:00:03.7]} 57. Kd7 {[%clk 0:00:05.1]} 57... Rd2 {[%clk 0:00:03.8]} 58. Kc7
{[%clk 0:00:04.8]} 58... Qe7+ {[%clk 0:00:03.9]} 59. Kb8 {[%clk 0:00:04.5]}
59... Rxd6 {[%clk 0:00:04.3]} 60. Rc7 {[%clk 0:00:04.9]} 60... Qd8+ {[%clk
0:00:04.2]} 61. Rc8 {[%clk 0:00:05.4]} 61... Qd7 {[%clk 0:00:03.9]} 62. Ka8
{[%clk 0:00:05.5]} 62... Qb7# {[%clk 0:00:03.7]} 0-1